bitfinex-derivatives/quotes_SOLF0:USTF0_20260304
["timestamp","ask_amount","ask_price","bid_price","bid_amount"]
[1772600515283,1.58130411,85.39,85.343,3.67922258]
[1772600515483,3.61809663,85.391,85.343,3.67922258]
[1772600515782,1.58130411,85.39,85.343,3.67922258]
[1772600515984,3.61809663,85.389,85.343,3.67922258]
[1772600516282,3.61809663,85.389,85.346,3.67922258]
[1772600516784,163.819,85.466,85.351,3.67922258]
[1772600516785,5.19940074,85.4,85.351,3.67922258]
[1772600518376,1.58130411,85.41,85.361,3.67922258]
[1772600518779,3.61809663,85.412,85.373,3.67922258]
[1772600519481,1.58130411,85.41,85.373,3.67922258]
[1772600520385,1.58130411,85.41,85.374,10.542]
[1772600520585,1.58130411,85.41,85.373,3.67922258]
[1772600521082,1.58130411,85.41,85.36,1.58130411]
[1772600521083,3.61809663,85.409,85.36,1.58130411]
[1772600521383,1.58130411,85.41,85.361,3.67922258]
[1772600521783,5.19940074,85.41,85.361,3.67922258]
[1772600521984,3.61809663,85.389,85.332,3.67922258]
[1772600522186,3.61809663,85.379,85.34,3.67922258]
[1772600522378,3.61809663,85.379,85.341,3.67922258]
[1772600523589,3.61809663,85.379,85.332,3.67922258]
[1772600525293,3.61809663,85.379,85.334,10.547]
[1772600526398,1.58130411,85.37,85.334,14.22622258]
[1772600527300,3.61809663,85.379,85.334,14.22622258]
[1772600527597,1.58130411,85.37,85.334,14.22622258]
[1772600528897,1.58130411,85.37,85.334,3.67922258]
[1772600529502,3.61809663,85.369,85.334,3.67922258]
[1772600532906,3.61809663,85.359,85.321,3.67922258]
[1772600534300,1.58130411,85.36,85.289,21.76425126]
[1772600534301,1.58130411,85.37,85.324,3.67922258]
[1772600534607,3.61809663,85.379,85.331,3.67922258]
[1772600535003,1.58130411,85.37,85.331,3.67922258]
[1772600535208,1.58130411,85.37,85.331,14.22622258]
[1772600535408,5.19940074,85.37,85.331,3.67922258]
[1772600536109,3.61809663,85.359,85.317,3.67922258]
[1772600536805,1.58130411,85.38,85.331,3.67922258]
[1772600537005,3.61809663,85.385,85.341,3.67922258]
[1772600537707,3.61809663,85.399,85.36,1.58130411]
[1772600537908,1.58130411,85.41,85.361,3.67922258]
[1772600538412,3.61809663,85.412,85.371,3.89828694]
[1772600538612,1.58130411,85.41,85.371,3.89828694]
[1772600539611,1.58130411,85.41,85.318,21.76425126]
[1772600539612,1.58130411,85.39,85.343,3.89828694]
[1772600539809,1.58130411,85.4,85.351,3.82041605]
[1772600540210,1.58130411,85.39,85.351,3.82041605]
[1772600541304,3.61414408,85.391,85.352,10.545]
[1772600541715,1.58130411,85.4,85.353,3.82041605]
[1772600542214,5.19544819,85.4,85.353,3.82041605]
[1772600542614,3.61414408,85.399,85.353,3.82041605]
[1772600543309,3.61414408,85.389,85.341,3.82041605]
[1772600543712,1.58130411,85.38,85.341,3.82041605]
[1772600543907,3.61414408,85.389,85.341,3.82041605]
[1772600544108,3.61414408,85.379,85.341,3.82041605]
[1772600544810,1.58130411,85.37,85.329,10.548]
[1772600545011,3.61414408,85.369,85.329,10.548]
[1772600545614,3.61414408,85.369,85.328,3.82041605]
[1772600549716,3.61414408,85.359,85.311,3.82041605]
[1772600549907,1.58130411,85.35,85.311,3.82041605]
[1772600550511,3.61414408,85.349,85.311,3.82041605]
[1772600553112,3.61414408,85.349,85.3,1.58130411]
[1772600553113,3.61414408,85.329,85.288,3.82041605]
[1772600554915,3.61414408,85.329,85.29,3.82041605]
[1772600555121,1.58130411,85.35,85.301,3.82041605]
[1772600555527,1.58130411,85.34,85.301,3.82041605]
[1772600557320,1.58130411,85.34,85.302,3.82041605]
[1772600557520,5.19544819,85.33,85.289,3.82041605]
[1772600557915,5.19544819,85.33,85.291,3.82041605]
[1772600558124,3.61414408,85.33,85.291,3.82041605]
[1772600558827,1.58258844,85.34,85.291,3.82041605]
[1772600559128,1.58258844,85.35,85.304,3.82041605]
[1772600560326,1.58258844,85.35,85.306,3.82041605]
[1772600561726,5.19673252,85.35,85.306,3.82041605]
[1772600561929,3.61414408,85.339,85.295,10.552]
[1772600563632,3.61414408,85.339,85.295,14.37241605]
[1772600565031,3.61414408,85.339,85.299,3.82041605]
[1772600565830,1.58258844,85.33,85.294,10.552]
[1772600566635,3.61414408,85.339,85.294,10.552]
[1772600566933,3.61414408,85.339,85.295,3.82041605]
[1772600568633,1.58258844,85.32,85.286,3.95625273]
[1772600568934,3.91927077,85.329,85.286,3.95625273]
[1772600573436,3.91927077,85.329,85.246,11.68990709]
[1772600573437,1.58258844,85.31,85.273,3.95625273]
[1772600574937,3.91927077,85.323,85.275,3.95625273]
[1772600575127,1.58258844,85.32,85.275,3.95625273]
[1772600575929,3.91927077,85.341,85.291,3.95625273]
[1772600576239,3.91927077,85.339,85.291,3.95625273]
[1772600576738,1.58258844,85.32,85.277,3.95625273]
[1772600577834,1.58258844,85.32,85.28,5.53884117]
[1772600578034,1.58258844,85.32,85.281,3.95625273]
[1772600578738,1.58258844,85.32,85.246,11.72654865]
[1772600578739,3.91927077,85.319,85.271,3.95625273]
[1772600579136,3.91927077,85.319,85.273,10.555]
[1772600579340,3.91927077,85.319,85.274,3.95625273]
[1772600580242,3.91927077,85.319,85.276,3.95625273]
[1772600581445,1.58258844,85.31,85.262,3.95625273]
[1772600581644,5.50185921,85.31,85.262,3.95625273]
[1772600582444,5.50185921,85.31,85.264,3.95625273]
[1772600583344,5.50185921,85.31,85.266,3.95625273]
[1772600583844,1.58258844,85.32,85.271,3.95625273]
[1772600584745,1.58258844,85.31,85.271,3.95625273]
[1772600587046,3.91927077,85.319,85.275,3.95625273]
[1772600587941,1.58258844,85.31,85.275,3.95625273]
[1772600589344,3.91927077,85.319,85.275,3.95625273]
[1772600589546,3.91927077,85.319,85.277,3.95625273]
[1772600589747,3.91927077,85.328,85.277,3.95625273]
[1772600590147,1.58258844,85.33,85.281,3.95625273]
[1772600591246,5.50185921,85.34,85.291,3.95625273]
[1772600592150,1.58258844,85.33,85.291,3.95625273]
[1772600592747,3.91927077,85.329,85.291,3.95625273]
[1772600592946,10.92679469,85.365,85.254,285.66369829]
[1772600592947,1.58258844,85.35,85.302,3.95625273]
[1772600593148,5.50185921,85.35,85.302,3.95625273]
[1772600593444,3.91927077,85.339,85.291,3.95625273]
[1772600594448,1.58258844,85.33,85.291,3.95625273]
[1772600594651,3.91927077,85.329,85.291,3.95625273]
[1772600595948,1.58258844,85.34,85.291,3.95625273]
[1772600596649,3.91927077,85.349,85.301,3.95625273]
[1772600597050,3.91927077,85.349,85.303,3.95625273]
[1772600597750,1.58258844,85.34,85.303,3.95625273]
[1772600598751,1.58258844,85.34,85.287,3.630162]
[1772600598752,1.58258844,85.33,85.287,3.630162]
[1772600602062,3.94841793,85.309,85.266,83.96094659]
[1772600602357,3.94841793,85.309,85.266,3.96094659]
[1772600603757,1.58258844,85.31,85.214,80.0]
[1772600603758,3.94841793,85.307,85.214,80.0]
[1772600603958,3.94841793,85.307,85.087,297.0]
[1772600603959,10.94384952,85.215,85.128,0.00073366]
[1772600604161,1.58258844,85.14,84.946,494.462]
[1772600604361,12.36922658,85.139,85.09,1.58258844]
[1772600604664,12.36922658,85.138,85.091,12.52520493]
[1772600604961,21.89404074,85.137,85.091,12.52520493]
[1772600605165,21.89404074,85.136,85.091,12.52520493]
[1772600605360,9.52481416,85.135,85.091,12.52520493]
[1772600605566,9.52481416,85.134,85.091,12.52520493]
[1772600605767,1.58258844,85.13,85.091,12.52520493]
[1772600605968,20.09681416,85.129,85.091,12.52520493]
[1772600606265,1.58258844,85.16,85.11,1.58258844]
[1772600606464,21.94681839,85.179,85.108,12.41126178]
[1772600606663,21.94681839,85.178,85.108,12.41126178]
[1772600606864,32.51381839,85.177,85.108,12.41126178]
[1772600607063,10.60890449,85.176,85.11,12.41126178]
[1772600607263,10.60890449,85.176,85.1,4.72853271]
[1772600607264,11.33984546,85.189,85.121,12.5421409]
[1772600607463,4.72853271,85.19,85.121,12.5421409]
[1772600608561,10.565,85.187,85.121,24.20042515]
[1772600608766,10.565,85.187,85.121,12.5421409]
[1772600609070,4.72853271,85.17,85.081,12.54253191]
[1772600609461,10.568,85.168,85.081,12.54253191]
[1772600609761,10.568,85.168,85.101,12.57966564]
[1772600610265,10.568,85.168,85.105,11.65828425]
[1772600610457,10.568,85.168,85.106,12.57858441]
[1772600610663,10.568,85.168,85.107,11.65828425]
[1772600611261,10.568,85.168,85.108,11.65828425]
[1772600611465,10.568,85.168,85.106,12.57858441]
[1772600611656,10.568,85.168,85.107,11.65828425]
[1772600612060,10.568,85.168,85.106,12.57858441]
[1772600612262,10.568,85.168,85.108,11.65828425]
[1772600612463,10.568,85.168,85.108,24.2286874]
[1772600612668,10.568,85.168,85.109,11.65828425]
[1772600612963,10.568,85.168,85.109,24.2286874]
[1772600613161,4.72853271,85.2,85.129,11.65828425]
[1772600613367,4.72853271,85.2,85.13,12.58185919]
[1772600613768,4.72853271,85.2,85.131,12.58185919]
[1772600614365,4.72853271,85.2,85.134,12.58088329]
[1772600614763,4.72853271,85.2,85.135,11.65828425]
[1772600615066,10.565,85.186,85.135,24.23916754]
[1772600615264,10.565,85.186,85.05,4.72853271]
[1772600615265,4.72853271,85.18,85.118,12.63080134]
[1772600615864,21.55887482,85.205,85.129,12.63080134]
[1772600616069,4.72853271,85.21,85.129,12.63080134]
[1772600616971,10.565,85.19,85.129,12.63080134]
[1772600617370,10.565,85.19,85.138,12.54865037]
[1772600617870,10.565,85.19,85.141,11.65828425]
[1772600618473,10.565,85.19,85.143,11.65828425]
[1772600618670,10.565,85.19,85.138,12.54865037]
[1772600618866,10.565,85.19,85.142,11.65828425]
[1772600619372,10.565,85.19,85.144,11.65828425]
[1772600619565,10.565,85.19,85.138,12.54865037]
[1772600619766,10.565,85.19,85.142,11.65828425]
[1772600620266,10.565,85.19,85.138,12.54865037]
[1772600620267,10.565,85.19,85.144,11.65828425]
[1772600620467,10.565,85.19,85.138,12.54865037]
[1772600620969,10.565,85.19,85.142,11.65828425]
[1772600621366,10.565,85.19,85.144,11.65828425]
[1772600621671,10.564,85.199,85.138,12.54865037]
[1772600621871,10.564,85.199,85.14,12.54760371]
[1772600622172,4.72649363,85.22,85.14,12.54760371]
[1772600622367,4.72649363,85.22,85.149,12.54656995]
[1772600622763,10.564,85.199,85.153,12.54656995]
[1772600623274,10.564,85.199,85.164,11.65828425]
[1772600623573,10.564,85.199,85.164,24.21717713]
[1772600623868,10.562,85.215,85.171,12.55889288]
[1772600624263,10.562,85.215,85.181,11.65828425]
[1772600624466,10.562,85.215,85.171,12.55889288]
[1772600626871,4.72649363,85.25,85.201,12.51893828]
[1772600627574,4.72649363,85.25,85.203,12.46669481]
[1772600627870,4.72649363,85.27,85.203,12.46669481]
[1772600628467,4.72649363,85.27,85.21,12.46335771]
[1772600628872,4.72649363,85.27,85.213,11.65828425]
[1772600629073,83.0,85.286,85.214,12.46335771]
[1772600629476,83.0,85.286,85.218,12.46226781]
[1772600629973,10.555,85.268,85.22,12.46226781]
[1772600630371,15.28049363,85.28,85.22,12.46226781]
[1772600630574,10.554,85.28,85.24,12.46097639]
[1772600630778,4.72649363,85.28,85.21,4.72649363]
[1772600631979,10.555,85.269,85.223,11.65828425]
[1772600632179,10.555,85.269,85.21,4.72649363]
[1772600632874,10.555,85.269,85.211,6.21910492]
[1772600633072,10.555,85.269,85.238,6.21910492]
[1772600633475,10.555,85.269,85.251,11.65828425]
[1772600633874,10.555,85.269,85.238,6.21910492]
[1772600634074,10.555,85.269,85.251,11.65828425]
[1772600634278,10.555,85.269,85.238,6.21910492]
[1772600634584,10.555,85.269,85.252,11.65828425]
[1772600634778,10.555,85.269,85.238,6.21910492]
[1772600635784,10.556,85.258,85.201,6.39207211]
[1772600640284,10.75163091,85.281,85.221,5.84884739]
[1772600640481,6.28167742,85.302,85.221,5.84884739]
[1772600641287,10.554,85.28,85.221,5.84884739]
[1772600644590,10.68275778,85.303,85.241,5.84884739]
[1772600644893,10.68275778,85.326,85.241,5.84884739]
[1772600645087,4.72649363,85.33,85.261,5.84884739]
[1772600645291,10.68275778,85.329,85.261,5.84884739]
[1772600645486,4.72649363,85.31,85.261,5.84884739]
[1772600646783,10.551,85.301,85.261,5.84884739]
[1772600646986,11.00817105,85.33,85.261,5.84884739]
[1772600647193,16.94461788,85.329,85.261,5.84884739]
[1772600647490,6.28167742,85.327,85.261,5.84884739]
[1772600647693,16.94461788,85.326,85.261,5.84884739]
[1772600647990,10.66294046,85.325,85.261,5.84884739]
[1772600648187,10.55,85.313,85.261,5.84884739]
[1772600649292,10.548,85.323,85.261,5.84884739]
[1772600650196,10.55,85.313,85.261,5.84884739]
[1772600651489,10.551,85.301,85.261,5.84884739]
[1772600652389,10.55,85.311,85.261,5.84884739]
[1772600653293,10.549,85.321,85.261,5.84884739]
[1772600653897,10.55,85.312,85.261,5.84884739]
[1772600657900,6.28167742,85.32,85.261,5.84884739]
[1772600658297,8.158169,85.329,85.261,5.84884739]
[1772600658502,8.158169,85.327,85.261,5.84884739]
[1772600658702,8.158169,85.325,85.261,5.84884739]
[1772600658902,8.158169,85.323,85.261,5.84884739]
[1772600659099,8.158169,85.321,85.261,5.84884739]
[1772600659297,10.549,85.318,85.261,5.84884739]
[1772600660402,18.33846151,85.315,85.261,5.84884739]
[1772600660705,10.54440808,85.314,85.261,5.84884739]
[1772600660908,7.78946151,85.315,85.261,5.84884739]
[1772600661206,10.54485251,85.314,85.261,5.84884739]
[1772600661403,18.33431402,85.313,85.261,5.84884739]
[1772600661596,7.78946151,85.309,85.247,7.98964814]
[1772600661801,7.78946151,85.307,85.247,7.98964814]
[1772600662006,7.78946151,85.305,85.247,7.98964814]
[1772600662207,7.78946151,85.303,85.247,7.98964814]
[1772600662409,7.78946151,85.301,85.247,7.98964814]
[1772600662710,7.78946151,85.299,85.247,7.98964814]
[1772600662904,18.33431402,85.298,85.247,7.98964814]
[1772600663105,10.54485251,85.297,85.247,7.98964814]
[1772600663305,10.552,85.294,85.247,7.98964814]
[1772600663609,7.78946151,85.293,85.247,7.98964814]
[1772600664210,10.45178383,85.292,85.247,7.98964814]
[1772600664409,7.78946151,85.293,85.247,7.98964814]
[1772600664604,10.4518481,85.292,85.247,7.98964814]
[1772600664811,7.78946151,85.292,85.247,7.98964814]
[1772600665207,7.78946151,85.29,85.247,7.98964814]
[1772600665509,4.72649363,85.31,85.247,7.98964814]
[1772600665510,7.78946151,85.288,85.247,7.98964814]
[1772600665710,21.54495878,85.287,85.247,7.98964814]
[1772600666011,7.78946151,85.283,85.221,7.98964814]
[1772600666201,7.78946151,85.281,85.221,7.98964814]
[1772600666402,7.78946151,85.276,85.221,7.98964814]
[1772600666608,7.78946151,85.274,85.221,7.98964814]
[1772600666805,7.78946151,85.272,85.221,7.98964814]
[1772600667005,21.55692382,85.271,85.221,7.98964814]
[1772600667209,21.55692382,85.27,85.221,7.98964814]
[1772600667411,7.78946151,85.272,85.221,7.98964814]
[1772600667412,21.55692382,85.269,85.221,7.98964814]
[1772600667608,7.78946151,85.267,85.221,7.98964814]
[1772600667809,7.78946151,85.265,85.221,7.98964814]
[1772600668011,7.78946151,85.263,85.221,7.98964814]
[1772600668206,7.78946151,85.261,85.187,7.98964814]
[1772600668406,7.78946151,85.259,85.187,7.98964814]
[1772600668611,7.78946151,85.253,85.187,7.98964814]
[1772600668909,21.55692382,85.252,85.187,7.98964814]
[1772600669109,21.55692382,85.251,85.187,7.98964814]
[1772600669314,21.27658314,85.25,85.187,7.98964814]
[1772600669513,21.27658314,85.249,85.187,7.98964814]
[1772600669710,7.78946151,85.247,85.187,7.98964814]
[1772600669911,7.78946151,85.245,85.187,7.98964814]
[1772600670214,10.42705646,85.244,85.187,7.98964814]
[1772600670514,10.42705646,85.243,85.187,7.98964814]
[1772600670817,7.78946151,85.241,85.187,7.98964814]
[1772600671019,21.28442898,85.24,85.187,7.98964814]
[1772600671212,21.28442898,85.239,85.187,7.98964814]
[1772600671414,21.28442898,85.238,85.187,7.98964814]
[1772600671619,21.28442898,85.237,85.187,7.98964814]
[1772600671815,10.42705646,85.236,85.187,7.98964814]
[1772600672014,7.78946151,85.241,85.187,7.98964814]
[1772600672212,10.33204648,85.24,85.187,7.98964814]
[1772600672515,10.33204648,85.239,85.187,7.98964814]
[1772600672710,10.33425431,85.238,85.187,7.98964814]
[1772600672917,7.78946151,85.255,85.187,7.98964814]
[1772600673119,20.99574301,85.254,85.187,7.98964814]
[1772600673417,28.78520452,85.253,85.187,7.98964814]
[1772600673614,20.99574301,85.252,85.187,7.98964814]
[1772600673823,20.99574301,85.251,85.187,7.98964814]
[1772600674014,20.99574301,85.25,85.187,7.98964814]
[1772600674211,10.13098932,85.249,85.187,7.98964814]
[1772600674415,10.13098932,85.248,85.187,7.98964814]
[1772600674721,10.69406916,85.271,85.187,7.98964814]
[1772600674722,7.78946151,85.246,85.187,7.98964814]
[1772600674918,7.78946151,85.244,85.187,7.98964814]
[1772600675219,7.78946151,85.242,85.187,7.98964814]
[1772600675415,7.78946151,85.229,85.174,7.98964814]
[1772600675718,7.78946151,85.227,85.174,7.98964814]
[1772600676319,7.78946151,85.226,85.174,7.98964814]
[1772600677110,83.0,85.249,85.174,7.98964814]
[1772600677111,90.78946151,85.249,85.174,7.98964814]
[1772600677313,7.78946151,85.247,85.174,7.98964814]
[1772600677512,7.78946151,85.245,85.174,7.98964814]
[1772600677720,7.78946151,85.243,85.174,7.98964814]
[1772600677922,7.78946151,85.238,85.174,7.98964814]
[1772600678118,7.78946151,85.236,85.174,7.98964814]
[1772600678319,7.78946151,85.229,85.174,7.98964814]
[1772600681119,7.78946151,85.227,85.174,7.98964814]
[1772600683325,7.78946151,85.24,85.174,7.98964814]
[1772600684226,7.78946151,85.238,85.174,7.98964814]
[1772600684618,7.78946151,85.236,85.174,7.98964814]
[1772600685219,7.78946151,85.229,85.174,7.98964814]
[1772600685424,7.78946151,85.229,85.158,7.98964814]
[1772600685618,7.78946151,85.227,85.158,7.98964814]
[1772600686319,7.78946151,85.22,85.158,7.98964814]
[1772600689341,83.0,85.226,85.158,7.98964814]
[1772600689541,9.16877179,85.233,85.158,7.98964814]
[1772600692541,9.16877179,85.233,85.125,11.82066972]
[1772600692542,9.16877179,85.229,85.171,9.63471619]
[1772600693942,92.16877179,85.237,85.181,9.63471619]
[1772600694145,10.75505678,85.25,85.191,9.63471619]
[1772600694644,9.16877179,85.25,85.201,9.63471619]
[1772600700451,83.0,85.262,85.201,9.63471619]
[1772600700636,9.16877179,85.265,85.201,9.63471619]
[1772600701245,9.16877179,85.265,85.202,9.63471619]
[1772600702143,9.16877179,85.265,85.205,9.63471619]
[1772600702349,9.16877179,85.263,85.205,9.63471619]
[1772600702852,9.16877179,85.261,85.183,9.63471619]
[1772600703143,9.16877179,85.259,85.183,9.63471619]
[1772600703346,9.16877179,85.257,85.183,9.63471619]
[1772600704146,9.16877179,85.255,85.183,9.63471619]
[1772600704346,9.16877179,85.253,85.185,9.63471619]
[1772600705747,83.0,85.269,85.201,9.63471619]
[1772600705748,9.16877179,85.267,85.201,9.63471619]
[1772600706146,83.0,85.27,85.201,9.63471619]
[1772600706347,9.16877179,85.281,85.22,4.71837115]
[1772600706547,9.96514569,85.28,85.221,9.63471619]
[1772600706746,9.96514569,85.279,85.221,9.63471619]
[1772600706951,9.96514569,85.278,85.221,9.63471619]
[1772600707151,9.96800445,85.277,85.221,9.63471619]
[1772600707449,9.16877179,85.281,85.221,9.63471619]
[1772600707648,9.96800941,85.28,85.221,9.63471619]
[1772600707952,9.96800941,85.279,85.221,9.63471619]
[1772600708251,9.96800941,85.278,85.223,9.63471619]
[1772600708454,9.96800941,85.277,85.223,9.63471619]
[1772600708650,9.16877179,85.281,85.223,9.63471619]
[1772600708845,9.16877179,85.279,85.223,9.63471619]
[1772600709050,9.97104684,85.278,85.223,9.63471619]
[1772600709253,9.97104684,85.277,85.223,9.63471619]
[1772600709551,9.97104684,85.276,85.223,9.63471619]
[1772600709752,9.97431131,85.275,85.223,9.63471619]
[1772600709954,9.97431131,85.274,85.223,9.63471619]
[1772600710152,9.97431131,85.273,85.223,9.63471619]
[1772600710449,9.97431131,85.272,85.223,9.63471619]
[1772600710654,9.16877179,85.29,85.223,9.63471619]
[1772600710849,9.16877179,85.288,85.223,9.63471619]
[1772600711050,9.16877179,85.286,85.223,9.63471619]
[1772600711350,4.71837115,85.29,85.223,9.63471619]
[1772600711351,9.16877179,85.284,85.223,9.63471619]
[1772600711551,9.16877179,85.282,85.223,9.63471619]
[1772600711847,9.97622338,85.281,85.223,9.63471619]
[1772600712048,9.16877179,85.282,85.223,9.63471619]
[1772600712954,19.14241907,85.281,85.223,9.63471619]
[1772600713151,9.97435391,85.28,85.223,9.63471619]
[1772600713350,9.97435391,85.279,85.223,9.63471619]
[1772600713550,9.97435391,85.278,85.223,9.63471619]
[1772600713753,9.97435391,85.277,85.223,9.63471619]
[1772600713953,9.16877179,85.281,85.223,9.63471619]
[1772600714160,9.97201654,85.28,85.223,9.63471619]
[1772600714355,9.97201654,85.279,85.223,9.63471619]
[1772600714553,9.16877179,85.281,85.223,9.63471619]
[1772600714754,9.9696418,85.28,85.223,9.63471619]
[1772600714954,9.9696418,85.279,85.225,9.63471619]
[1772600715250,10.8567965,85.323,85.225,9.63471619]
[1772600715452,9.16877179,85.327,85.2,4.71837115]
[1772600715453,9.16877179,85.327,85.254,9.63471619]
[1772600715656,9.16877179,85.325,85.254,9.63471619]
[1772600715857,9.16877179,85.322,85.254,9.63471619]
[1772600716356,9.16877179,85.309,85.221,9.63471619]
[1772600716551,1.58402348,85.28,85.231,9.63471619]
[1772600717356,1.58402348,85.29,85.241,9.63471619]
[1772600718150,11.2347903,85.29,85.241,9.63471619]
[1772600718453,11.2347903,85.29,85.085,51.14880501]
[1772600718454,11.2347903,85.27,85.227,9.79385909]
[1772600718653,1.58402348,85.26,85.227,9.79385909]
[1772600719852,11.2347903,85.27,85.227,9.79385909]
[1772600721658,10.262581,85.249,85.185,9.70904049]
[1772600721859,1.58402348,85.24,85.191,9.70904049]
[1772600722055,10.262581,85.249,85.191,9.70904049]
[1772600722056,1.58402348,85.23,85.191,9.70904049]
[1772600722559,10.262581,85.236,85.191,9.70904049]
[1772600723060,1.58402348,85.23,85.191,9.70904049]
[1772600724548,10.262581,85.236,85.191,9.70904049]
[1772600725955,10.262581,85.236,85.171,9.70904049]
[1772600727059,10.262581,85.257,85.18,4.7195432]
[1772600727260,10.262581,85.257,85.181,9.70904049]
[1772600727458,10.262581,85.257,85.186,10.565]
[1772600727655,10.262581,85.257,85.187,9.70904049]
[1772600727863,10.262581,85.256,85.187,9.70904049]
[1772600728362,10.262581,85.255,85.187,9.70904049]
[1772600728555,83.0,85.257,85.191,9.70904049]
[1772600729158,83.0,85.257,85.195,9.70904049]
[1772600730861,10.262581,85.256,85.195,9.70904049]
[1772600731359,10.557,85.255,85.195,9.70904049]
[1772600731657,10.8567965,85.289,85.172,10.567]
[1772600731658,10.262581,85.239,85.18,9.70904049]
[1772600734659,4.7195432,85.24,85.18,9.70904049]
[1772600734660,10.262581,85.236,85.18,9.70904049]
[1772600736464,10.262581,85.234,85.18,9.70904049]
[1772600737864,4.7195432,85.25,85.18,9.70904049]
[1772600738368,10.558,85.246,85.18,9.70904049]
[1772600738556,93.558,85.246,85.18,9.70904049]
[1772600738967,10.559,85.236,85.18,9.70904049]
[1772600740067,10.262581,85.235,85.18,9.70904049]
[1772600742860,10.262581,85.229,85.166,9.70904049]
[1772600744361,10.262581,85.223,85.166,9.70904049]
[1772600744558,10.262581,85.199,85.153,9.70904049]
[1772600745062,83.0,85.256,85.14,1.58680026]
[1772600745063,10.262581,85.189,85.14,1.58680026]
[1772600745256,1.58680026,85.18,85.137,9.70904049]
[1772600746166,10.262581,85.203,85.139,9.70904049]
[1772600746370,10.262581,85.199,85.15,1.58680026]
[1772600746966,10.262581,85.199,85.15,11.29584075]
[1772600750163,1.58680026,85.19,85.15,9.70904049]
[1772600752371,1.58680026,85.19,85.151,10.57]
[1772600752568,1.58680026,85.19,85.15,9.70904049]
[1772600754872,10.262581,85.199,85.15,9.70904049]
[1772600755669,10.262581,85.199,85.15,11.29584075]
[1772600756268,10.76740498,85.19,85.15,9.70904049]
[1772600757070,9.18060472,85.19,85.15,9.70904049]
[1772600757474,1.58680026,85.2,85.15,11.29584075]
[1772600757969,9.18060472,85.199,85.15,11.29584075]
[1772600759276,9.18060472,85.199,85.151,9.35757068]
[1772600760476,9.18060472,85.199,85.15,1.58680026]
[1772600760775,10.88122062,85.241,85.126,95.0]
[1772600760776,1.58680026,85.16,85.126,95.0]
[1772600760972,10.76740498,85.16,85.126,95.0]
[1772600761275,9.18060472,85.149,85.126,49.04629448]
[1772600761474,1.58680026,85.14,85.126,49.04629448]
[1772600761677,1.58680026,85.14,85.094,9.35757068]
[1772600761870,1.58680026,85.14,85.126,23.0]
[1772600762372,9.18060472,85.149,85.126,23.0]
[1772600765472,19.43727321,85.195,85.126,49.41446417]
[1772600765783,1.58680026,85.16,85.126,23.0]
[1772600766982,10.569,85.159,85.126,23.0]
[1772600767187,1.58680026,85.14,85.126,23.0]
[1772600768282,1.58680026,85.14,85.097,26.41822908]
[1772600768485,10.57,85.149,85.097,26.41822908]
[1772600768486,1.58680026,85.13,85.097,26.41822908]
[1772600769387,1.58680026,85.14,85.097,26.41822908]
[1772600770092,1.58680026,85.11,85.062,29.0385921]
[1772600770885,10.574,85.118,85.062,29.0385921]
[1772600770886,1.58680026,85.1,85.062,29.0385921]
[1772600771382,1.58680026,85.11,85.062,29.0385921]
[1772600771789,1.58680026,85.1,85.062,29.0385921]
[1772600771983,1.58680026,85.11,85.062,29.0385921]
[1772600773591,1.58680026,85.13,85.071,28.96866706]
[1772600773994,1.58680026,85.12,85.071,28.96866706]
[1772600774398,1.58680026,85.13,85.081,28.96401394]
[1772600774892,1.58680026,85.14,85.091,28.96401394]
[1772600775496,1.58680026,85.16,85.111,29.09409632]
[1772600775696,1.58680026,85.17,85.121,29.09409632]
[1772600775893,1.58680026,85.18,85.13,30.68089658]
[1772600776492,9.60130624,85.198,85.056,21.163]
[1772600776493,9.60130624,85.198,85.132,29.08867841]
[1772600776695,4.72638953,85.22,85.132,29.08867841]
[1772600777203,10.563,85.204,85.141,10.571]
[1772600777406,10.563,85.204,85.142,29.01365049]
[1772600777596,4.72638953,85.22,85.142,29.01365049]
[1772600778205,10.562,85.215,85.144,29.01365049]
[1772600779205,4.72638953,85.22,85.158,28.92500584]
[1772600779500,4.72638953,85.24,85.158,28.92500584]
[1772600779900,4.72638953,85.24,85.14,4.72638953]
[1772600779901,10.559,85.237,85.172,28.92500584]
[1772600782103,4.72638953,85.24,85.172,28.92500584]
[1772600783306,10.559,85.238,85.172,28.92500584]
[1772600783908,10.56,85.227,85.172,28.92500584]
[1772600784107,4.72638953,85.24,85.172,28.92500584]
[1772600784308,9.60688501,85.249,85.172,28.92500584]
[1772600784505,10.558,85.249,85.174,28.80026664]
[1772600785200,10.558,85.249,85.177,28.80026664]
[1772600785809,10.558,85.249,85.18,28.79616478]
[1772600786609,10.559,85.238,85.18,28.79616478]
[1772600789314,4.72638953,85.25,85.18,28.79616478]
[1772600789315,10.558,85.249,85.18,28.79616478]